{"text_format":"1","workbook":"xlsx","n_sheets":1,"sheets":["Document Courier "],"not_rendered":{"charts":0,"images":0,"macros":1,"external_links":0,"defined_names":2,"comments":0,"pivot_tables":0},"unopened":[],"bounds":{"document_bytes":16777216,"sheet_cells":100000,"rows_first":2000,"rows_last":500,"rows_between":2000,"halvings":0,"cell_chars":16384,"cell_head_chars":4096},"cells_cut":0,"cells_raw":0,"read":"whole","date_system":"1900"}

{"sheet":"Document Courier ","index":0,"n_rows":110,"n_cols":19,"rows_kept":110,"cut":false,"hidden":false,"merged":[[99,0,99,7],[100,0,100,7],[109,0,109,1],[101,2,101,7],[102,2,102,7],[103,2,103,7],[104,2,104,7],[105,2,105,7],[106,2,106,7],[101,0,101,1],[102,0,102,1],[103,0,103,1],[104,0,104,1],[105,0,105,1],[106,0,106,1],[0,0,0,12],[1,0,1,12],[2,0,2,12],[46,0,46,3],[4,0,4,3],[9,5,9,12],[33,5,33,12],[46,5,46,12],[9,0,9,3],[33,0,33,3],[5,4,5,5],[5,6,5,7],[5,8,5,9],[5,10,5,11],[3,4,4,11]]}
["Sunaulo Parivar Nepal"]
["Price Schedule"]
["\"Freight and Courier Service\""]
[null,null,null,null,"Please quote the per KG rate in NPR including of all the applicable taxes. "]
["* Please note that Price schedule should be computer typed.  "]
[null,null,null,null,"Below 1 KG / Documents ",null,"Unit Rate Above 1 kg ",null,"Unit Rate Above 50 kg ",null,"Unit Rate Above 100 kg "]
["SN","Location","District","Municipality Name","By Air ","By Road ","By Air ","By Road ","By Air ","By Road ","By Air ","By Road ","Estimated Delivery Days ",null,null,null,null,"Sub Total","Taxes if Applicable"]
[]
[]
["Marie Stopes Centre (MSC)",null,null,null,null,null,null,null,null,null,null,null,null,null,null,null,null,{"$f":"G10","v":0},{"$f":"F10-F10*R10","v":0}]
[1,"MSC Attariya ","Kailai","Godawari Municipality",null,null,null,null,null,null,null,null,null,null,null,0.02,null,0,0]
[2,"MSC Bardghat","Nawalparsi","Bardaghat Municipality",null,null,null,null,null,null,null,null,null,null,null,0.04,"No",0,0]
[3,"MSC Bhairahawa","Rupandehi","Siddarthanagar Municipality",null,null,null,null,null,null,null,null,null,null,null,0.06,null,0,0]
[4,"MSC Biratnagar","Morng","Biratnagar metropolitan",null,null,null,null,null,null,null,null,null,null,null,7.0000000000000007E-2,null,0,0]
[5,"MSC Birgunj","Parsa","Birgunj Metropolitan",null,null,null,null,null,null,null,null,null,null,null,0.08,null,0,0]
[6,"MSC Birtamod","Jhapa","Birtamaod Municipality",null,null,null,null,null,null,null,null,null,null,null,0.09,null,0,0]
[7,"MSC Butwal","Rupandehi","Butwal Sub-Metropolitan",null,null,null,null,null,null,null,null,null,null,null,0.1,null,0,0]
[8,"MSC Chandrauta","Kapilbastu","Sihiwaraj Municipality",null,null,null,null,null,null,null,null,null,null,null,0.11,null,0,0]
[9,"MSC Chuchchepati","Kathmandu","Kathmandu Metropolitan",null,null,null,null,null,null,null,null,null,null,null,0.12,null,0,0]
[10,"MSC Dang","Dang","Tulsipur Sub-Metropolitan",null,null,null,null,null,null,null,null,null,null,null,0.14000000000000001,null,0,0]
[11,"MSC Dumre","Tanahun","Bandipur Rural-Municipality",null,null,null,null,null,null,null,null,null,null,null,0.15,null,0,0]
[12,"MSC Samakhushi","Kathmandu","Kathmandu Metropolitan",null,null,null,null,null,null,null,null,null,null,null,0.16,null,0,0]
[13,"MSC Itahari","Sunsari","Itahari Sub-metropolitan",null,null,null,null,null,null,null,null,null,null,null,0.22,null,0,0]
[14,"MSC Kohalpur","Banke","Kohalpur Municipality",null,null,null,null,null,null,null,null,null,null,null,0.25,null,0,0]
[15,"MSC Lahan","Siraha","Lahan Municipality",null,null,null,null,null,null,null,null,null,null,null,0.26,null,0,0]
[16,"MSC Lalbandi","Sarlahi","Lalbandi Municipality",null,null,null,null,null,null,null,null,null,null,null,0.27,null,0,0]
[17,"MSC Narayanghat","Chitwan","Bharatpur Metropolitan",null,null,null,null,null,null,null,null,null,null,null,0.28000000000000003,null,0,0]
[18,"MSC Pokhara","Kaski","Pokhara Metropolitan",null,null,null,null,null,null,null,null,null,null,null,0.31,null,0,0]
[19,"MSC Putalisadak","Kathmandu","Kathmandu Metropolitan",null,null,null,null,null,null,null,null,null,null,null,0.32,null,0,0]
[20,"MSC Satdobato","Lalitpur","Lalitpur Metropolitan",null,null,null,null,null,null,null,null,null,null,null,0.34,null,0,0]
[21,"MSC Surkhet","Surkhet","Birendranagar Municipality",null,null,null,null,null,null,null,null,null,null,null,0.35,null,0,0]
[22,"MSC Taulihawa","Kapilbastu","Kapilvastu Municipality",null,null,null,null,null,null,null,null,null,null,null,0.36,null,0,0]
[null,null,null,null,null,null,null,null,null,null,null,null,null,null,null,0.37,null,0,0]
["MS Ladies District Offices",null,null,null,null,null,null,null,null,null,null,null,null,null,null,0.38,null,0,{"$f":"#REF!-#REF!*R34","v":{"$error":"#REF!"}}]
[1,"MS Ladies  Baitadi","Baitadi","Gothlapani, Baitadi",null,null,null,null,null,null,null,null,null,null,null,0.39,null,0,0]
[2,"MS Ladies  Dhanusha","Mohattari","Pidari chowk, Janakpur-14",null,null,null,null,null,null,null,null,null,null,null,0.4,null,0,0]
[3,"MS Ladies  Rautahat","Rautahat","Gaur-5, Gaur Chowk",null,null,null,null,null,null,null,null,null,null,null,0.41,null,0,0]
[4,"MS Ladies  Mugu","Mugu","Gamgadi, Chhayanath Rara - 2",null,null,null,null,null,null,null,null,null,null,null,0.42,null,0,0]
[5,"MS Ladies  Sarlahi","Sarlahi","Hariwon chowk,  Hariwon- 11",null,null,null,null,null,null,null,null,null,null,null,0.43,null,0,0]
[6,"MS Ladies  Sindhuli","Sindhuli","Sindhulimadi, Kamalamai - 6 ",null,null,null,null,null,null,null,null,null,null,null,0.44,null,0,0]
[7,"MS Ladies  Tanahu","Tanahun","Uttarsila Tole, Byas-2",null,null,null,null,null,null,null,null,null,null,null,0.45,null,0,0]
[8,"MS Ladies  Kailali","Kailali","Alan chock, Dhangadi - 4",null,null,null,null,null,null,null,null,null,null,null,0.46,null,0,0]
[9,"MS Ladies  Taplejung","Taplegung","Parajuli chowk, Phungling-3",null,null,null,null,null,null,null,null,null,null,null,0.47,null,0,0]
[10,".MS Ladies  Ilam","Ilam","Ilam -7, Malapath",null,null,null,null,null,null,null,null,null,null,null,0.48,null,0,0]
[11,"MS Ladies  Nuwakot","Nuwakot","Battar, Bidur -4, ",null,null,null,null,null,null,null,null,null,null,null,0.49,null,0,0]
[null,null,null,null,null,null,null,null,null,null,null,null,null,null,null,0.56999999999999995,null,0,0]
["Other Sites",null,null,null,null,null,null,null,null,null,null,null,null,null,null,0.57999999999999996,null,0,0]
[1,"Panchthar","Panchthar",null,null,null,null,null,null,null,null,null,null,null,null,0.59,null,0,0]
[2,"Dhankutta","Dhankutta",null,null,null,null,null,null,null,null,null,null,null,null,0.6,null,0,0]
[3,"Sankhuwasabha","Sankhuwa",null,null,null,null,null,null,null,null,null,null,null,null,0.61,null,0,0]
[4,"Bhojpur","Bhojpur"]
[5,"Terhathum","Terhathum"]
[6,"Okhaldunga","Okhaldunga"]
[7,"Khotang","Khotang"]
[8,"Solukhumbu","Solukhumbu"]
[9,"Udaypur","Udaypur"]
[10,"Saptari","Saptari"]
[11,"Dhanusa","Dhanusa"]
[12,"Ramechhap","Ramechhap"]
[13,"Dolkha","Dolkha"]
[14,"Sindhupalchauk","Sipa"]
[15,"Kavreplanchauk","Kavre"]
[16,"Bhaktapur","Bhaktapur"]
[17,"Rasuwa","Rasuwa"]
[18,"Dhading","Dhading"]
[19,"Makwanpur","Makwanpur"]
[20,"Bara","Bara"]
[21,"Gorkha","Gorkha"]
[22,"Lamjung","Lamjung"]
[23,"Syangja","Syangja"]
[24,"Manag","Manag"]
[25,"Mustang","Mustang"]
[26,"Parwat","Parwat"]
[27,"Myagdi","Myagdi"]
[28,"Baglung","Baglung"]
[29,"Gulmi","Gulmi"]
[30,"Palpa","Palpa"]
[31,"Parasi","Parasi"]
[32,"Arghakhanchi","Arghakha"]
[33,"Pyuthan","Pyuthan"]
[34,"Rolpa","Rolpa"]
[35,"Rukum Purba","Rukum East"]
[36,"Rukum Paschim","Rukum wast"]
[37,"Salyan","Salyan"]
[38,"Bardiya","Bardiya"]
[39,"Dailekh","Dailekh"]
[40,"Jajarkot","Jajarkot"]
[41,"Dolpa","Dolpa"]
[42,"Humla","Humla"]
[43,"Kalikot","Kalikot"]
[44,"Jumla","Jumla"]
[45,"Bajura","Bajura"]
[46,"Bajhang","Bajhang"]
[47,"Achham","Achham"]
[48,"Doti","Doti"]
[49,"Kanchanpur","Kanchanpur"]
[50,"Dadeldhura","Dadeldhura"]
[51,"Darchula","Darchula"]
[null,null,null,null,null,null,null,null,null,null,null,null,null,null,null,0.68,null,{"$f":"G99","v":0},{"$f":"F99-F99*R99","v":0}]
["*Above rate is valid for 2 years and further extension can be made upon mutual understanding between both parties\n*Quoted rate are inclusive of VAT/ Tax\n* The service will be provided in a need basis \n* We agree all the terms and condition as per the TOR. Also for the bid evaluation purpose we have attached all the reference documents and information\n* We have attached separate sheet to cover the all the location which we have in our offer",null,null,null,null,null,null,null,null,null,null,null,null,null,null,0.75]
["Other Conditions If Any:"]
["Name of Bidder and Designation:",null,null,null,null,null,null,null,null,null,null,null,null,null,null,0.94]
["Signature of Bidder: ",null,null,null,null,null,null,null,null,null,null,null,null,null,null,0.96]
["Name of the Organization: ",null,null,null,null,null,null,null,null,null,null,null,null,null,null,0.97]
["Address:",null,null,null,null,null,null,null,null,null,null,null,null,null,null,0.98]
["Contact Number:",null,null,null,null,null,null,null,null,null,null,null,null,null,null,0.99]
["Date: ",null,null,null,null,null,null,null,null,null,null,null,null,null,null,1]
[]
[]
["Company Stamp:"]